[Event "WJCC U20 Open 2019"]
[Site "New Delhi"]
[Date "2019.10.19"]
[Round "6.37"]
[White "Papadiamandis, Elliot"]
[Black "Jablonicky, Martin"]
[Result "1/2-1/2"]
[ECO "B06"]
[WhiteElo "2190"]
[BlackElo "2333"]
[Annotator "NA"]
[PlyCount "83"]
[EventDate "2019.10.15"]
[EventType "swiss"]
[EventCountry "IND"]
[SourceTitle "playchess.com"]
[Source "ChessBase"]
[SourceQuality "1"]
[TimeControl "40/5400+30:1800+30"]

1. e4 {[%emt 0:00:00]} g6 {[%emt 0:00:00]} 2. d4 {[%emt 0:00:00]} Bg7 {[%emt 0:00:00]} 3. Nf3 {[%emt 0:00:00]} c6 {[%emt 0:00:05]} 4. Nc3 {[%emt 0:01:14]} d5 {[%emt 0:00:10]} 5. Bf4 {[%emt 0:04:20]} Bg4 {[%emt 0:00:47]} 6. e5 $11 {[%emt 0:05:20]} Qb6 {[%emt 0:04:08]} 7. Qd2 {[%emt 0:04:10]} Bxf3 {[%emt 0:00:07]} 8. gxf3 {[%emt 0:00:06]} e6 {[%emt 0:00:04]} 9. O-O-O {[%emt 0:03:14]} Nd7 {[%emt 0:00:33]} 10. Na4 {[%emt 0:03:30]} Qc7 {[%emt 0:00:22]} 11. Bg5 {[%emt 0:00:25]} b5 {[%emt 0:09:16]} 12. Nc3 {[%emt 0:00:39]} b4 {[%emt 0:04:24]} 13. Ne2 {[%emt 0:09:45]} Qa5 {[%emt 0:00:12]} 14. Kb1 {[%emt 0:09:50]} c5 {[%emt 0:06:07]} 15. f4 {[%emt 0:02:40]} c4 {[%emt 0:00:24]} 16. Rg1 {[%emt 0:12:13]} Bf8 {[%emt 0:00:31]} 17. Rg3 {[%emt 0:03:35]} Rb8 {[%emt 0:00:28]} 18. f5 {[%emt 0:00:59]} gxf5 {[%emt 0:00:33]} 19. Nf4 {[%emt 0:00:13]} Rb6 {[%emt 0:04:17]} 20. Ra3 {[%emt 0:02:25]} Qb5 {[%emt 0:03:29]} 21. Rxa7 {[%emt 0:04:06]} Ra6 {[%emt 0:01:12]} 22. Rxa6 {[%emt 0:00:59]} Qxa6 {[%emt 0:00:01]} 23. Nh5 {[%emt 0:03:57]} Nb6 {[%emt 0:01:43]} 24. Be2 {[%emt 0:02:43]} Na4 {[%emt 0:01:07]} 25. Rg1 {[%emt 0:00:27]} Qa5 {[%emt 0:03:07]} 26. Rg3 {[%emt 0:05:47]} Qb6 {[%emt 0:05:50]} 27. Nf6+ {[%emt 0:02:02]} Nxf6 {[%emt 0:00:05]} 28. Bxf6 {[%emt 0:00:03]} Nc3+ {[%emt 0:00:04]} 29. Ka1 {[%emt 0:01:33]} Ne4 {[%emt 0:00:18]} 30. Qe3 {[%emt 0:01:06]} Nxf6 {[%emt 0:00:25]} 31. exf6 {[%emt 0:00:03]} f4 {[%emt 0:00:05]} 32. Qxf4 {[%emt 0:00:23]} Bd6 {[%emt 0:00:04]} 33. Qe3 {[%emt 0:01:06]} Bxg3 {[%emt 0:00:06]} 34. fxg3 {[%emt 0:00:25]} Qa5 {[%emt 0:00:46]} 35. Bh5 {[%emt 0:00:24]} Qa6 {[%emt 0:02:01]} 36. c3 {[%emt 0:03:34]} bxc3 {[%emt 0:01:36]} 37. Qxc3 {[%emt 0:00:15]} Qb6 {[%emt 0:06:04]} 38. Qa3 {[%emt 0:01:13]} Qd8 {[%emt 0:00:11]} 39. Qa4+ {[%emt 0:00:35]} Kf8 {[%emt 0:00:23]} 40. Qa3+ {[%emt 0:00:03]} Ke8 {[%emt 0:01:02]} 41. Qa4+ {[%emt 0:30:16]} Kf8 {[%emt 0:30:17]} 42. Qa3+ {[%emt 0:00:27]} 1/2-1/2

[Event "WJCC U20 Open 2019"]
[Site "New Delhi"]
[Date "2019.10.19"]
[Round "6.38"]
[White "Licheli, Luka"]
[Black "Sterck, Arno"]
[Result "1/2-1/2"]
[ECO "C47"]
[WhiteElo "2010"]
[BlackElo "2331"]
[Annotator "NA"]
[PlyCount "150"]
[EventDate "2019.10.15"]
[EventType "swiss"]
[EventCountry "IND"]
[SourceTitle "playchess.com"]
[Source "ChessBase"]
[SourceQuality "1"]
[TimeControl "40/5400+30:1800+30"]

1. e4 e5 2. Nc3 Nf6 3. Nf3 Nc6 4. Bc4 Nxe4 5. Nxe4 d5 6. Bd3 Nb4 7. Ng3 e4 8. Bxe4 dxe4 9. Nxe4 Bg4 10. a3 Bxf3 11. gxf3 Nc6 12. d3 Be7 13. Be3 f5 14. Nc3 f4 15. Bxf4 Nd4 16. Be3 O-O 17. f4 Qd7 18. Ne4 Rad8 19. Rg1 Qh3 20. Bxd4 Rxd4 21. Qg4 Qh6 22. Ng5 Rfxf4 23. Qc8+ Bf8 24. Qe6+ Qxe6+ 25. Nxe6 Rg4 26. Ke2 Ra4 27. h3 Rh4 28. Rg3 Rh6 29. Nxf8 Kxf8 30. Rag1 g6 31. Rf3+ Ke7 32. Rgg3 Rah4 33. Re3+ Kd7 34. Rgf3 g5 35. Rf7+ Kd6 36. Ree7 Rxh3 37. Rd7+ Ke6 38. Rde7+ Kd6 39. Rd7+ Ke5 40. Rxc7 Rc6 41. Rxc6 bxc6 42. Rxa7 h5 43. Ra5+ Kf4 44. Rc5 g4 45. a4 Rh2 46. Kf1 h4 47. Rxc6 h3 48. Rh6 Rh1+ 49. Ke2 Rc1 50. Kd2 Ra1 51. b3 Kf3 52. Rf6+ Kg2 53. Rf4 h2 54. Rxg4+ Kxf2 55. Rh4 h1=Q 56. Rxh1 Rxh1 57. a5 Kf3 58. c4 Kf4 59. Kc3 Ke5 60. d4+ Kd6 61. Kb4 Kc7 62. Kb5 Kb7 63. b4 Ra1 64. d5 Ra2 65. Kc5 Kc7 66. Kb5 Kb7 67. c5 Rd2 68. d6 Rd4 69. a6+ Ka7 70. Kc6 Rxb4 71. Kc7 Kxa6 72. c6 Rd4 73. Kd7 Rc4 74. Kc7 Rd4 75. d7 Kb5 1/2-1/2

[Event "WJCC U20 Open 2019"]
[Site "New Delhi"]
[Date "2019.10.19"]
[Round "6.39"]
[White "Maltezeanu, Stefan"]
[Black "Muthaiah AL"]
[Result "1/2-1/2"]
[ECO "A45"]
[WhiteElo "2102"]
[BlackElo "2370"]
[Annotator "NA"]
[PlyCount "86"]
[EventDate "2019.10.15"]
[EventType "swiss"]
[EventCountry "IND"]
[SourceTitle "playchess.com"]
[Source "ChessBase"]
[SourceQuality "1"]
[TimeControl "40/5400+30:1800+30"]

1. d4 {[%emt 0:00:00]} Nf6 {[%emt 0:01:04]} 2. Bf4 {[%emt 0:00:03]} c5 {[%emt 0:01:21]} 3. e3 {[%emt 0:01:51]} cxd4 {[%emt 0:07:14]} 4. exd4 {[%emt 0:00:42]} d5 {[%emt 0:00:23]} 5. c3 {[%emt 0:01:01]} Nc6 {[%emt 0:00:43]} 6. Nf3 {[%emt 0:00:12]} Bf5 {[%emt 0:03:44]} 7. Qb3 {[%emt 0:07:46]} Qc8 {[%emt 0:00:55]} 8. Nbd2 {[%emt 0:03:41]} e6 {[%emt 0:03:03]} 9. Bb5 {[%emt 0:03:13]} Be7 {[%emt 0:08:31]} 10. O-O {[%emt 0:03:39]} O-O {[%emt 0:01:34]} 11. h3 {[%emt 0:02:42]} a6 {[%emt 0:06:50]} 12. Be2 {[%emt 0:04:19]} h6 {[%emt 0:02:07]} 13. a4 {[%emt 0:00:33]} Bd8 {[%emt 0:09:59]} 14. c4 {[%emt 0:12:25]} Bc7 {[%emt 0:05:31]} 15. Be5 {[%emt 0:04:34]} Nxe5 {[%emt 0:09:44]} 16. dxe5 {[%emt 0:00:41]} dxc4 {[%emt 0:00:23]} 17. Nxc4 {[%emt 0:07:59]} Nd5 {[%emt 0:02:54]} 18. Nd4 {[%emt 0:05:52]} Be4 {[%emt 0:03:58]} 19. Rac1 {[%emt 0:03:04]} Qb8 {[%emt 0:05:28]} 20. Qg3 {[%emt 0:08:44]} Rd8 {[%emt 0:06:36]} 21. Rfd1 {[%emt 0:01:09]} Nb6 {[%emt 0:04:02]} 22. Qg4 {[%emt 0:09:44]} Bd5 {[%emt 0:02:36]} 23. f4 {[%emt 0:03:32]} Nxc4 {[%emt 0:07:16]} 24. Bxc4 {[%emt 0:00:30]} Bxc4 {[%emt 0:00:14]} 25. Rxc4 {[%emt 0:00:06]} b5 {[%emt 0:00:12]} 26. axb5 {[%emt 0:01:17]} axb5 {[%emt 0:00:08]} 27. Rb4 {[%emt 0:02:06]} Ba5 {[%emt 0:02:17]} 28. Rxb5 {[%emt 0:01:29]} Qa7 {[%emt 0:00:10]} 29. Kh2 {[%emt 0:00:08]} Qa6 {[%emt 0:03:52]} 30. Rxa5 {[%emt 0:03:47]} Qxa5 {[%emt 0:00:08]} 31. Nc6 {[%emt 0:00:02]} Qb6 {[%emt 0:00:25]} 32. Nxd8 {[%emt 0:00:06]} Rxd8 {[%emt 0:00:05]} 33. Rxd8+ {[%emt 0:00:22]} Qxd8 {[%emt 0:00:02]} 34. Qe2 {[%emt 0:00:11]} Qd4 {[%emt 0:01:14]} 35. g3 {[%emt 0:01:39]} g5 {[%emt 0:00:53]} 36. fxg5 {[%emt 0:00:17]} hxg5 {[%emt 0:00:07]} 37. Kg2 {[%emt 0:00:45]} Kg7 {[%emt 0:01:12]} 38. Kf3 {[%emt 0:03:31]} Kh6 {[%emt 0:01:10]} 39. Qe3 {[%emt 0:03:41]} Qxb2 {[%emt 0:00:49]} 40. h4 {[%emt 0:00:09]} Qb7+ {[%emt 0:00:19]} 41. Kg4 {[%emt 0:30:29]} Qb4+ {[%emt 0:30:23]} 42. Kh3 {[%emt 0:01:09]} Qe7 {[%emt 0:00:19]} 43. Kg4 {[%emt 0:01:21]} Qb4+ {[%emt 0:00:30]} 1/2-1/2

[Event "WJCC U20 Open 2019"]
[Site "New Delhi"]
[Date "2019.10.19"]
[Round "6.40"]
[White "Risting, Eivind Olav"]
[Black "Hamad Essam"]
[Result "1-0"]
[ECO "A28"]
[WhiteElo "2289"]
[BlackElo "1849"]
[Annotator "NA"]
[PlyCount "63"]
[EventDate "2019.10.15"]
[EventType "swiss"]
[EventCountry "IND"]
[SourceTitle "playchess.com"]
[Source "ChessBase"]
[SourceQuality "1"]
[TimeControl "40/5400+30:1800+30"]

1. c4 e5 2. Nc3 Nf6 3. Nf3 Nc6 4. e3 Bb4 5. Qc2 O-O 6. Nd5 Re8 7. Qf5 d6 8. Nxf6+ Qxf6 9. Qxf6 gxf6 10. a3 Bc5 11. b4 Bb6 12. Bb2 Be6 13. Be2 a6 14. O-O d5 15. c5 Ba7 16. h3 b5 17. Bc3 d4 18. exd4 e4 19. Nh2 Rad8 20. Ng4 Bxg4 21. Bxg4 Nxd4 22. a4 f5 23. Bd1 Bb8 24. axb5 axb5 25. Ra8 Rd7 26. Re1 c6 27. Kf1 Red8 28. g4 fxg4 29. Rxe4 Ne6 30. Bxg4 Re8 31. Bxe6 fxe6 32. Be5 1-0

[Event "WJCC U20 Open 2019"]
[Site "New Delhi"]
[Date "2019.10.19"]
[Round "6.41"]
[White "Flores Quillas, Diego Saul Rodri"]
[Black "Sivathanujan, S."]
[Result "1-0"]
[ECO "B33"]
[WhiteElo "2164"]
[BlackElo "1766"]
[Annotator "NA"]
[PlyCount "69"]
[EventDate "2019.10.15"]
[EventType "swiss"]
[EventCountry "IND"]
[SourceTitle "playchess.com"]
[Source "ChessBase"]
[SourceQuality "1"]
[TimeControl "40/5400+30:1800+30"]

1. e4 {[%emt 0:00:00]} c5 {[%emt 0:00:00]} 2. Nf3 {[%emt 0:00:00]} Nc6 {[%emt 0:00:02]} 3. d4 {[%emt 0:00:08]} cxd4 {[%emt 0:00:08]} 4. Nxd4 {[%emt 0:00:05]} e6 {[%emt 0:00:11]} 5. Nc3 {[%emt 0:00:29]} Nf6 {[%emt 0:00:10]} 6. Ndb5 {[%emt 0:00:20]} d6 {[%emt 0:04:08]} 7. Bf4 {[%emt 0:00:07]} e5 {[%emt 0:00:17]} 8. Bg5 {[%emt 0:00:04]} a6 {[%emt 0:00:42]} 9. Na3 {[%emt 0:00:08]} Be6 {[%emt 0:01:22]} 10. Nc4 {[%emt 0:01:01]} b5 {[%emt 0:06:50]} 11. Ne3 {[%emt 0:00:25]} Qa5 {[%emt 0:01:11]} 12. Bxf6 {[%emt 0:03:29]} gxf6 {[%emt 0:00:07]} 13. Be2 {[%emt 0:01:44]} Be7 {[%emt 0:02:58]} 14. O-O {[%emt 0:00:14]} Rc8 {[%emt 0:02:50]} 15. Bg4 {[%emt 0:02:02]} Nd4 {[%emt 0:03:32]} 16. Ncd5 {[%emt 0:00:41]} h5 {[%emt 0:03:51]} 17. Bf5 {[%emt 0:01:17]} Nxf5 {[%emt 0:14:24]} 18. exf5 {[%emt 0:00:06]} Bxd5 {[%emt 0:00:08]} 19. Qxd5 {[%emt 0:00:16]} Qb6 {[%emt 0:04:59]} 20. Rfd1 {[%emt 0:00:39]} Qc6 {[%emt 0:03:27]} 21. Qb3 {[%emt 0:02:12]} h4 {[%emt 0:01:02]} 22. h3 {[%emt 0:00:05]} Rg8 {[%emt 0:04:44]} 23. Rd5 {[%emt 0:00:34]} Rg5 {[%emt 0:08:11]} 24. a4 {[%emt 0:00:59]} Rb8 {[%emt 0:00:45]} 25. axb5 {[%emt 0:06:34]} Rxb5 {[%emt 0:00:38]} 26. Rxb5 {[%emt 0:00:03]} axb5 {[%emt 0:05:38]} 27. Ra5 {[%emt 0:00:09]} d5 {[%emt 0:04:19]} 28. Rxb5 {[%emt 0:09:50]} d4 {[%emt 0:01:52]} 29. Qa4 {[%emt 0:07:14]} Qd7 {[%emt 0:08:02]} 30. Qa8+ {[%emt 0:02:48]} Bd8 {[%emt 0:01:07]} 31. Rd5 {[%emt 0:00:05]} Qc7 {[%emt 0:02:15]} 32. Nc4 {[%emt 0:00:07]} e4 {[%emt 0:03:10]} 33. Na5 {[%emt 0:03:30]} e3 34. Nc6 {[%emt 0:00:03]} exf2+ {[%emt 0:02:15]} 35. Kf1 {[%emt 0:00:03]} 1-0

[Event "WJCC U20 Open 2019"]
[Site "New Delhi"]
[Date "2019.10.19"]
[Round "6.42"]
[White "Raahul V S"]
[Black "Mohd Saprin, Amir Ghaazi"]
[Result "1-0"]
[ECO "A35"]
[WhiteElo "2262"]
[BlackElo "1942"]
[Annotator "NA"]
[PlyCount "123"]
[EventDate "2019.10.15"]
[EventType "swiss"]
[EventCountry "IND"]
[SourceTitle "playchess.com"]
[Source "ChessBase"]
[SourceQuality "1"]
[TimeControl "40/5400+30:1800+30"]

1. c4 {[%emt 0:00:00]} c5 {[%emt 0:00:00]} 2. Nf3 {[%emt 0:00:00]} Nf6 {[%emt 0:00:03]} 3. Nc3 {[%emt 0:00:00]} Nc6 {[%emt 0:00:06]} 4. d4 {[%emt 0:00:00]} cxd4 {[%emt 0:00:08]} 5. Nxd4 {[%emt 0:00:04]} Qb6 {[%emt 0:00:22]} 6. e3 {[%emt 0:02:51]} e6 {[%emt 0:08:22]} 7. Ndb5 {[%emt 0:01:50]} Ne5 {[%emt 0:04:29]} 8. Qd4 {[%emt 0:01:19]} Qxd4 {[%emt 0:19:09]} 9. exd4 {[%emt 0:00:02]} Nc6 {[%emt 0:00:18]} 10. Nc7+ {[%emt 0:00:05]} Kd8 {[%emt 0:00:06]} 11. Nxa8 {[%emt 0:00:04]} Nxd4 {[%emt 0:02:32]} 12. Bd3 {[%emt 0:00:04]} b6 {[%emt 0:04:03]} 13. Be3 {[%emt 0:00:07]} e5 {[%emt 0:01:11]} 14. Bxd4 {[%emt 0:05:49]} exd4 {[%emt 0:00:14]} 15. Nb5 {[%emt 0:00:02]} Bb4+ {[%emt 0:01:25]} 16. Kf1 {[%emt 0:00:37]} Bb7 {[%emt 0:00:24]} 17. a3 {[%emt 0:00:34]} Be7 {[%emt 0:03:42]} 18. Nxb6 {[%emt 0:01:05]} axb6 {[%emt 0:00:08]} 19. Nxd4 {[%emt 0:00:05]} Nh5 {[%emt 0:01:21]} 20. Be2 {[%emt 0:02:34]} Nf4 {[%emt 0:00:55]} 21. Bf3 {[%emt 0:00:10]} Ba6 {[%emt 0:00:11]} 22. b3 {[%emt 0:00:19]} Bc5 {[%emt 0:06:06]} 23. Nc2 {[%emt 0:00:24]} Re8 {[%emt 0:17:59]} 24. Nb4 {[%emt 0:02:35]} Bc8 {[%emt 0:00:56]} 25. g3 {[%emt 0:00:08]} Nh3 {[%emt 0:03:49]} 26. Nd3 {[%emt 0:00:10]} Bd4 {[%emt 0:06:30]} 27. Re1 {[%emt 0:01:18]} Rf8 {[%emt 0:01:07]} 28. Kg2 {[%emt 0:00:35]} d6 {[%emt 0:01:02]} 29. Nb4 {[%emt 0:00:41]} Bd7 {[%emt 0:03:37]} 30. Nc6+ {[%emt 0:01:43]} Bxc6 {[%emt 0:00:19]} 31. Bxc6 {[%emt 0:00:02]} Nxf2 {[%emt 0:00:29]} 32. Rhf1 {[%emt 0:00:04]} Ng4 {[%emt 0:01:54]} 33. Rf4 {[%emt 0:00:04]} Bc3 {[%emt 0:00:40]} 34. Re2 {[%emt 0:02:03]} Ne5 {[%emt 0:01:29]} 35. Be4 {[%emt 0:00:48]} h6 {[%emt 0:01:38]} 36. Rc2 {[%emt 0:00:47]} Bd4 {[%emt 0:01:39]} 37. Bd5 {[%emt 0:01:00]} Be3 {[%emt 0:00:59]} 38. Re4 {[%emt 0:00:02]} Bg5 {[%emt 0:00:19]} 39. h4 {[%emt 0:02:20]} Be7 {[%emt 0:00:23]} 40. c5 {[%emt 0:01:50]} bxc5 {[%emt 0:01:33]} 41. Ra4 {[%emt 0:30:01]} Nd7 {[%emt 0:29:45]} 42. Ra8+ {[%emt 0:00:00]} Kc7 {[%emt 0:00:10]} 43. Ra7+ {[%emt 0:00:00]} Kc8 {[%emt 0:01:33]} 44. b4 {[%emt 0:00:00]} Bd8 {[%emt 0:03:43]} 45. bxc5 {[%emt 0:00:00]} Nxc5 {[%emt 0:00:08]} 46. Rb2 {[%emt 0:00:00]} Re8 {[%emt 0:01:04]} 47. a4 {[%emt 0:00:00]} Re3 {[%emt 0:01:12]} 48. a5 {[%emt 0:00:00]} Bf6 {[%emt 0:00:46]} 49. Rb6 {[%emt 0:00:00]} Be5 {[%emt 0:00:48]} 50. Rc6+ {[%emt 0:00:00]} Kd8 {[%emt 0:00:29]} 51. Bf3 {[%emt 0:00:00]} g5 {[%emt 0:00:39]} 52. Rb6 {[%emt 0:00:00]} d5 {[%emt 0:02:45]} 53. Rxf7 {[%emt 0:00:00]} g4 {[%emt 0:00:33]} 54. Bxd5 {[%emt 0:00:00]} Rxg3+ {[%emt 0:00:21]} 55. Kf1 {[%emt 0:00:00]} Ra3 {[%emt 0:01:16]} 56. Rg6 {[%emt 0:00:00]} Nd7 {[%emt 0:00:36]} 57. Rg8+ {[%emt 0:00:00]} Kc7 {[%emt 0:00:21]} 58. Be6 {[%emt 0:00:00]} Rf3+ {[%emt 0:00:35]} 59. Rxf3 {[%emt 0:00:00]} gxf3 {[%emt 0:00:09]} 60. Bxd7 {[%emt 0:00:00]} Kxd7 {[%emt 0:00:11]} 61. a6 {[%emt 0:00:00]} Bd4 {[%emt 0:01:03]} 62. a7 {[%emt 0:00:00]} 1-0

[Event "WJCC U20 Open 2019"]
[Site "New Delhi"]
[Date "2019.10.19"]
[Round "6.43"]
[White "Doluweera, Minul Sanjula"]
[Black "Davis, Holden"]
[Result "1/2-1/2"]
[ECO "A84"]
[WhiteElo "2191"]
[BlackElo "1817"]
[Annotator "NA"]
[PlyCount "102"]
[EventDate "2019.10.15"]
[EventType "swiss"]
[EventCountry "IND"]
[SourceTitle "playchess.com"]
[Source "ChessBase"]
[SourceQuality "1"]
[TimeControl "40/5400+30:1800+30"]

1. d4 {[%emt 0:00:00]} e6 {[%emt 0:00:00]} 2. c4 {[%emt 0:00:25]} f5 {[%emt 0:00:08]} 3. Nc3 {[%emt 0:00:06]} Nf6 {[%emt 0:00:06]} 4. Qc2 {[%emt 0:00:00]} b6 {[%emt 0:01:38]} 5. e3 {[%emt 0:02:34]} Bb7 {[%emt 0:00:24]} 6. f3 {[%emt 0:00:15]} Bb4 {[%emt 0:14:39]} 7. Bd3 {[%emt 0:02:58]} O-O {[%emt 0:01:07]} 8. Bd2 {[%emt 0:00:44]} c5 {[%emt 0:04:52]} 9. Nge2 {[%emt 0:10:16]} Nc6 {[%emt 0:05:28]} 10. a3 {[%emt 0:21:31]} cxd4 {[%emt 0:10:00]} 11. exd4 {[%emt 0:04:12]} Bd6 {[%emt 0:04:29]} 12. b4 {[%emt 0:20:37]} Rc8 {[%emt 0:06:37]} 13. c5 {[%emt 0:02:09]} Bb8 {[%emt 0:03:40]} 14. Be3 {[%emt 0:03:10]} Ne7 {[%emt 0:02:43]} 15. Qd2 {[%emt 0:06:06]} Ned5 {[%emt 0:05:27]} 16. Nxd5 {[%emt 0:00:03]} Nxd5 {[%emt 0:00:09]} 17. Nc3 {[%emt 0:02:28]} Nxe3 {[%emt 0:02:32]} 18. Qxe3 {[%emt 0:00:01]} bxc5 {[%emt 0:01:33]} 19. bxc5 {[%emt 0:01:45]} e5 {[%emt 0:06:36]} 20. O-O {[%emt 0:05:45]} exd4 {[%emt 0:02:23]} 21. Qxd4 {[%emt 0:00:01]} Qc7 {[%emt 0:00:50]} 22. Ne2 {[%emt 0:02:49]} Qxh2+ {[%emt 0:00:43]} 23. Kf2 {[%emt 0:00:00]} Be5 {[%emt 0:06:06]} 24. Qc4+ {[%emt 0:05:13]} d5 {[%emt 0:00:09]} 25. Qb4 {[%emt 0:00:01]} Bxa1 26. Rxa1 Bc6 {[%emt 0:04:09]} 27. Nd4 {[%emt 0:02:29]} Bd7 {[%emt 0:07:19]} 28. Ba6 {[%emt 0:01:33]} Rb8 {[%emt 0:00:40]} 29. Qd2 {[%emt 0:00:06]} f4 {[%emt 0:00:51]} 30. c6 {[%emt 0:02:34]} Bh3 {[%emt 0:00:49]} 31. Bf1 {[%emt 0:00:02]} Qg3+ {[%emt 0:00:26]} 32. Kg1 {[%emt 0:00:13]} Rbe8 {[%emt 0:03:30]} 33. Rc1 {[%emt 0:00:55]} Rf6 {[%emt 0:01:18]} 34. c7 {[%emt 0:02:02]} Bc8 {[%emt 0:00:04]} 35. Qa5 {[%emt 0:01:36]} Qg5 {[%emt 0:01:35]} 36. Rc5 {[%emt 0:00:16]} Qe5 {[%emt 0:00:12]} 37. Nc2 {[%emt 0:01:02]} Qd6 {[%emt 0:02:05]} 38. Nd4 {[%emt 0:02:22]} Qe7 {[%emt 0:02:10]} 39. Nc2 {[%emt 0:00:17]} d4 {[%emt 0:00:36]} 40. Qxa7 {[%emt 0:00:46]} Rd6 {[%emt 0:00:25]} 41. Bc4+ {[%emt 0:03:14]} Kh8 {[%emt 0:00:39]} 42. Bd3 {[%emt 0:00:01]} Re6 {[%emt 0:07:20]} 43. Rh5 {[%emt 0:04:58]} g6 {[%emt 0:01:14]} 44. Qxd4+ {[%emt 0:01:48]} Qg7 {[%emt 0:01:53]} 45. Rd5 {[%emt 0:01:36]} Qxd4+ {[%emt 0:06:26]} 46. Nxd4 {[%emt 0:00:02]} R6e7 {[%emt 0:00:28]} 47. Rd8 {[%emt 0:09:38]} Kg7 {[%emt 0:01:15]} 48. Nc6 {[%emt 0:00:32]} Rxc7 {[%emt 0:07:18]} 49. Rxe8 {[%emt 0:00:24]} Rxc6 {[%emt 0:00:07]} 50. Bb5 {[%emt 0:01:26]} Rc1+ {[%emt 0:01:12]} 51. Kh2 {[%emt 0:01:15]} h5 {[%emt 0:02:48]} 1/2-1/2

[Event "WJCC U20 Open 2019"]
[Site "New Delhi"]
[Date "2019.10.19"]
[Round "6.44"]
[White "Aravena Navarro, Alexis Andres"]
[Black "Dahanayake, Isara Banidu"]
[Result "1/2-1/2"]
[ECO "B55"]
[WhiteElo "2023"]
[BlackElo "1771"]
[Annotator "NA"]
[PlyCount "54"]
[EventDate "2019.10.15"]
[EventType "swiss"]
[EventCountry "IND"]
[SourceTitle "playchess.com"]
[Source "ChessBase"]
[SourceQuality "1"]
[TimeControl "40/5400+30:1800+30"]

1. e4 {[%emt 0:00:00]} c5 {[%emt 0:00:00]} 2. Nf3 {[%emt 0:00:00]} d6 {[%emt 0:00:07]} 3. d4 {[%emt 0:00:00]} cxd4 {[%emt 0:00:31]} 4. Nxd4 {[%emt 0:00:00]} Nf6 {[%emt 0:00:13]} 5. f3 {[%emt 0:00:00]} e5 {[%emt 0:03:09]} 6. Bb5+ {[%emt 0:01:12]} Bd7 {[%emt 0:23:01]} 7. Bxd7+ {[%emt 0:00:25]} Nbxd7 {[%emt 0:15:59]} 8. Nf5 {[%emt 0:02:41]} Qc7 {[%emt 0:04:43]} 9. Nc3 {[%emt 0:04:44]} h6 {[%emt 0:03:26]} 10. O-O {[%emt 0:06:03]} a6 {[%emt 0:02:46]} 11. Be3 {[%emt 0:08:46]} g6 {[%emt 0:07:14]} 12. Ng3 {[%emt 0:02:01]} Nb6 {[%emt 0:05:41]} 13. Qd3 {[%emt 0:21:32]} Nc4 {[%emt 0:04:39]} 14. Rab1 {[%emt 0:03:01]} Rc8 {[%emt 0:11:36]} 15. Nge2 {[%emt 0:13:49]} Nxe3 {[%emt 0:03:34]} 16. Qxe3 {[%emt 0:00:02]} d5 {[%emt 0:01:13]} 17. Qd2 {[%emt 0:18:02]} d4 {[%emt 0:03:23]} 18. Nd1 {[%emt 0:07:34]} Qxc2 {[%emt 0:00:41]} 19. Qxc2 {[%emt 0:00:01]} Rxc2 {[%emt 0:00:02]} 20. Nc1 {[%emt 0:00:18]} Bd6 {[%emt 0:02:12]} 21. Nd3 {[%emt 0:00:02]} Nd7 {[%emt 0:03:29]} 22. N1f2 {[%emt 0:00:20]} O-O {[%emt 0:01:13]} 23. g3 {[%emt 0:00:37]} Rfc8 {[%emt 0:01:35]} 24. f4 {[%emt 0:00:51]} f6 {[%emt 0:00:52]} 25. Ng4 {[%emt 0:01:58]} Rd2 {[%emt 0:00:31]} 26. fxe5 {[%emt 0:00:46]} Bxe5 {[%emt 0:00:33]} 27. Ndxe5 {[%emt 0:00:44]} fxe5 {[%emt 0:00:23]} 1/2-1/2

[Event "WJCC U20 Open 2019"]
[Site "New Delhi"]
[Date "2019.10.19"]
[Round "6.45"]
[White "Swarnavo Choudhury"]
[Black "Lama, Milan"]
[Result "1/2-1/2"]
[ECO "B38"]
[WhiteElo "1797"]
[BlackElo "1976"]
[Annotator "NA"]
[PlyCount "116"]
[EventDate "2019.10.15"]
[EventType "swiss"]
[EventCountry "IND"]
[SourceTitle "playchess.com"]
[Source "ChessBase"]
[SourceQuality "1"]
[TimeControl "40/5400+30:1800+30"]

1. e4 {[%emt 0:00:00]} c5 {[%emt 0:00:00]} 2. Nf3 {[%emt 0:00:00]} g6 {[%emt 0:00:00]} 3. d4 {[%emt 0:00:00]} cxd4 {[%emt 0:00:00]} 4. Nxd4 {[%emt 0:00:00]} Bg7 {[%emt 0:00:00]} 5. c4 {[%emt 0:00:33]} Nc6 {[%emt 0:00:00]} 6. Be3 {[%emt 0:01:57]} Nf6 {[%emt 0:00:07]} 7. Nc3 {[%emt 0:00:07]} d6 {[%emt 0:00:10]} 8. Be2 {[%emt 0:00:24]} O-O {[%emt 0:00:14]} 9. f3 {[%emt 0:01:03]} Bd7 {[%emt 0:00:49]} 10. Qd2 {[%emt 0:01:30]} a5 {[%emt 0:01:20]} 11. O-O-O {[%emt 0:03:15]} a4 {[%emt 0:04:17]} 12. g4 {[%emt 0:01:14]} Nxd4 {[%emt 0:02:28]} 13. Bxd4 {[%emt 0:01:21]} Qa5 {[%emt 0:12:49]} 14. h4 {[%emt 0:02:03]} h5 {[%emt 0:15:05]} 15. Kb1 {[%emt 0:07:41]} Be6 {[%emt 0:08:31]} 16. Nd5 {[%emt 0:05:33]} Bxd5 {[%emt 0:01:07]} 17. cxd5 {[%emt 0:06:00]} Qxd2 {[%emt 0:00:54]} 18. Rxd2 {[%emt 0:00:05]} hxg4 {[%emt 0:00:44]} 19. Bxf6 {[%emt 0:00:24]} Bxf6 {[%emt 0:00:13]} 20. fxg4 {[%emt 0:00:07]} Rac8 {[%emt 0:02:38]} 21. Bb5 {[%emt 0:06:38]} a3 {[%emt 0:00:32]} 22. bxa3 {[%emt 0:00:55]} Rc3 {[%emt 0:00:15]} 23. a4 {[%emt 0:02:32]} Kg7 {[%emt 0:01:21]} 24. h5 {[%emt 0:02:07]} Rg3 {[%emt 0:10:28]} 25. hxg6 {[%emt 0:00:11]} Kxg6 {[%emt 0:00:33]} 26. Bd7 {[%emt 0:01:22]} b6 {[%emt 0:05:47]} 27. Rdh2 {[%emt 0:03:55]} Rf3 {[%emt 0:06:39]} 28. Rh5 {[%emt 0:03:17]} Bg5 {[%emt 0:04:37]} 29. Rh8 {[%emt 0:10:17]} Rxh8 {[%emt 0:00:07]} 30. Rxh8 {[%emt 0:00:09]} Rf2 {[%emt 0:03:20]} 31. Rh3 {[%emt 0:05:04]} Bf6 {[%emt 0:06:03]} 32. Rb3 {[%emt 0:00:44]} Bd4 {[%emt 0:00:29]} 33. Rb4 {[%emt 0:01:29]} Bc5 {[%emt 0:00:51]} 34. Rb5 {[%emt 0:00:05]} Kf6 {[%emt 0:00:20]} 35. a5 {[%emt 0:00:57]} bxa5 {[%emt 0:00:05]} 36. Rxa5 {[%emt 0:00:10]} Ke5 {[%emt 0:00:24]} 37. Ra4 {[%emt 0:00:29]} Bd4 {[%emt 0:00:29]} 38. Bf5 {[%emt 0:00:10]} Rb2+ {[%emt 0:02:50]} 39. Kc1 {[%emt 0:02:05]} Rg2 {[%emt 0:00:10]} 40. Kb1 {[%emt 0:02:48]} Rd2 {[%emt 0:05:44]} 41. Ra8 {[%emt 0:30:59]} Kf4 {[%emt 0:33:33]} 42. a4 {[%emt 0:03:28]} Ke3 {[%emt 0:04:09]} 43. Rb8 {[%emt 0:03:55]} Kd3 {[%emt 0:00:00]} 44. e5+ {[%emt 0:00:00]} Kc3 {[%emt 0:00:00]} 45. Rc8+ {[%emt 0:00:00]} Bc5 {[%emt 0:00:00]} 46. exd6 {[%emt 0:00:00]} exd6 {[%emt 0:00:00]} 47. Rb8 {[%emt 0:00:00]} Rd4 {[%emt 0:00:00]} 48. Bd7 {[%emt 0:00:00]} Bb4 {[%emt 0:00:00]} 49. Rf8 {[%emt 0:03:22]} Kb3 {[%emt 0:00:00]} 50. Rc8 {[%emt 0:00:29]} Bc5 {[%emt 0:00:00]} 51. Rb8+ {[%emt 0:01:00]} Kc3 {[%emt 0:00:00]} 52. a5 {[%emt 0:01:31]} Rxd5 {[%emt 0:00:00]} 53. a6 {[%emt 0:01:02]} Bd4 {[%emt 0:00:00]} 54. Rb5 {[%emt 0:00:59]} Bc5 {[%emt 0:03:07]} 55. Rb7 {[%emt 0:00:20]} Bd4 {[%emt 0:01:29]} 56. Rb5 {[%emt 0:00:09]} Rxb5+ {[%emt 0:01:27]} 57. Bxb5 {[%emt 0:00:06]} f6 {[%emt 0:01:01]} 58. Kc1 {[%emt 0:00:10]} Ba7 {[%emt 0:00:41]} 1/2-1/2